bitfinex/quotes_ETHUSD_20220109
["timestamp","ask_amount","ask_price","bid_price","bid_amount"]
[1641749110691,4.2425,3166.6,3166.1,0.0096632]
[1641749111289,5.51302237,3166.6,3165.9,0.01080004]
[1641749111889,5.51302237,3166.6,3165.8,0.01136847]
[1641749112089,5.51302237,3166.6,3165.6,0.07895]
[1641749112090,4.2425,3166.6,3165.7,0.80156689]
[1641749112552,5.8220953,3166.6,3165.8,0.01136847]
[1641749112952,5.8220953,3166.6,3165.7,0.01193689]
[1641749113152,4.2425,3166.6,3165.7,0.01193689]
[1641749113751,6.91868147,3166.6,3165.7,0.01193689]
[1641749113951,4.2425,3166.6,3165.7,0.01193689]
[1641749114950,4.2425,3166.6,3165.8,0.07896]
[1641749115151,4.2425,3166.6,3166.2,0.78953]
[1641749115552,4.2425,3166.6,3166.0,0.07895]
[1641749115553,4.2425,3166.6,3166.3,0.00852635]
[1641749115983,4.2425,3166.6,3166.1,0.0096632]
[1641749116385,3.64256421,3166.5,3166.1,0.0096632]
[1641749116584,3.64256421,3166.5,3164.6,0.84599968]
[1641749116585,1.0,3166.5,3165.7,0.01193689]
[1641749116788,0.78981,3166.3,3165.6,0.01250531]
[1641749116984,0.78981,3166.3,3165.2,0.01477901]
[1641749117584,3.9357,3166.5,3165.2,0.01477901]
[1641749117784,6.54957915,3166.5,3165.3,1.43468819]
[1641749117985,6.54957915,3166.5,3165.3,1.51364819]
[1641749118188,3.9357,3166.5,3165.4,0.01364216]
[1641749118486,3.9357,3166.5,3165.5,0.07896]
[1641749118689,3.9357,3166.5,3165.5,0.86859]
[1641749118887,3.9357,3166.5,3165.6,0.01250531]
[1641749119085,3.9357,3166.5,3165.7,0.07896]
[1641749119487,3.9357,3166.5,3165.8,0.01136847]
[1641749120142,3.9357,3166.5,3165.7,0.01193689]
[1641749120542,3.9357,3166.5,3165.8,0.78963]
[1641749120940,3.9357,3166.5,3165.9,0.01080004]
[1641749121143,5.8233777,3166.6,3166.0,1.18395729]
[1641749121344,5.8233777,3166.6,3165.9,0.01080004]
[1641749121541,5.8233777,3166.6,3166.1,0.0096632]
[1641749121742,5.8233777,3166.6,3165.8,0.01136847]
[1641749121942,5.8233777,3166.6,3165.9,0.7896]
[1641749122342,5.8233777,3166.6,3166.0,0.01023162]
[1641749122544,0.07895,3167.2,3166.7,0.71565956]
[1641749122745,0.07895,3167.2,3166.7,1.01565956]
[1641749122943,0.07895,3167.2,3166.8,0.00568423]
[1641749123143,0.07895,3167.2,3167.0,0.78935]
[1641749123596,0.07895,3167.2,3167.1,0.00397896]
[1641749124003,1.55348302,3167.6,3167.1,0.00397896]
[1641749124199,1.55348302,3167.6,3166.8,0.00568423]
[1641749124396,0.82692043,3167.7,3166.8,0.00568423]
[1641749124797,0.82692043,3167.7,3166.8,0.79506423]
[1641749125195,0.82692043,3167.7,3166.9,0.00511581]
[1641749125597,0.82692043,3167.7,3166.8,1.4760444]
[1641749125798,0.82692043,3167.7,3167.0,0.78933]
[1641749126199,0.82692043,3167.7,3167.1,0.00397896]
[1641749128839,0.82692043,3167.7,3167.0,0.78935]
[1641749129244,0.82692043,3167.7,3167.1,0.00397896]
[1641749130640,0.82692043,3167.7,3167.1,0.30397896]
[1641749130842,0.82692043,3167.7,3167.1,0.3]
[1641749131089,0.82692043,3167.7,3167.2,0.00341054]
[1641749131488,0.82692043,3167.7,3167.0,0.00454739]
[1641749131688,0.82692043,3167.7,3166.9,1.26064477]
[1641749131895,0.82692043,3167.7,3167.0,0.07892]
[1641749132087,0.82692043,3167.7,3167.0,0.08346739]
[1641749132289,25.82692043,3167.7,3167.1,0.00397896]
[1641749133690,25.82692043,3167.7,3167.2,1.65735]
[1641749133991,25.82692043,3167.7,3167.3,0.79210211]
[1641749134191,25.82692043,3167.7,3167.4,0.78923]
[1641749134393,25.82692043,3167.7,3167.4,0.79150369]
[1641749134590,25.82692043,3167.7,3167.5,0.00170527]
[1641749137945,25.82692043,3167.7,3167.3,0.79212211]
[1641749138144,25.82692043,3167.7,3167.4,0.00227369]
[1641749138596,25.82692043,3167.7,3167.3,0.00284211]
[1641749138994,25.82692043,3167.7,3167.4,0.78925]
[1641749139498,25.82692043,3167.7,3167.5,0.00170527]
[1641749140096,25.82692043,3167.7,3167.5,1.33555455]
[1641749140496,25.82692043,3167.7,3167.6,0.00113684]
[1641749140895,8.41352502,3167.7,3167.6,14.77788173]
[1641749141095,4.8652,3168.7,3167.7,7.7]
[1641749141299,4.8652,3168.7,3168.2,0.78891]
[1641749141496,4.87031581,3168.7,3168.3,0.07889]
[1641749141695,4.87031581,3168.7,3168.4,1.57781]
[1641749142348,4.87031581,3168.7,3168.0,0.07889]
[1641749142543,4.87031581,3168.7,3168.0,0.37889]
[1641749142740,4.87031581,3168.7,3168.0,1.16798]
[1641749142942,13.75,3168.6,3167.8,2.0331]
[1641749143144,13.75,3168.6,3167.6,0.00113684]
[1641749143145,0.01201444,3168.4,3167.6,0.00113684]
[1641749143542,0.00284212,3168.3,3167.4,0.79151369]
[1641749143945,0.0022737,3168.2,3167.5,0.79092527]
[1641749144146,0.0022737,3168.2,3167.6,1.49762575]
[1641749144345,0.00170527,3168.1,3167.6,1.49876259]
[1641749144545,0.00170527,3168.1,3167.6,3.09876259]
[1641749144747,0.00113685,3168.0,3167.6,3.09876259]
[1641749145144,0.00454739,3168.6,3167.6,3.09876259]
[1641749145342,0.00454739,3168.6,3168.0,0.78901]
[1641749145543,0.00397897,3168.5,3168.3,0.53901]
[1641749146002,0.00341054,3168.4,3168.3,0.83901]
[1641749150438,0.00341054,3168.4,3168.2,1.6]
[1641749150937,0.00284212,3168.3,3168.2,1.6]
[1641749151140,0.00284212,3168.3,3168.2,2.38898]
[1641749152738,0.00284212,3168.3,3168.2,4.7526161]
[1641749152942,1.57957357,3169.3,3168.3,13.75]
[1641749153140,1.57957357,3169.3,3168.8,0.78877]
[1641749153490,0.00511581,3169.2,3168.8,1.38877]
[1641749153689,0.00511581,3169.2,3168.8,2.38877]
[1641749153890,0.00454739,3169.1,3168.8,2.38877]
[1641749154289,0.00397896,3169.0,3168.8,2.38877]
[1641749154690,5.4604,3169.4,3168.8,2.38877]
[1641749154691,0.00341054,3168.9,3168.8,2.38877]
[1641749155692,0.00341054,3168.9,3168.8,1.38877]
[1641749156797,0.00341054,3168.9,3168.8,2.38877]
[1641749157245,0.00341054,3168.9,3168.8,4.7554036]
[1641749157643,0.00341054,3168.9,3168.8,34.16444605]
[1641749158440,1.57920697,3170.0,3168.9,13.75]
[1641749158640,9.75760074,3171.0,3169.8,0.78858]
[1641749158641,5.8450338,3170.8,3169.8,0.78858]
[1641749158840,5.8450338,3170.8,3169.8,1.38858]
[1641749159039,5.8450338,3170.8,3169.8,2.38858]
[1641749159639,1.5200768,3170.5,3170.0,0.78858]
[1641749159839,1.5200768,3170.5,3169.8,1.6]
[1641749159840,1.5200768,3170.5,3169.7,1.57716]
[1641749160040,0.00852635,3170.4,3169.8,0.3]
[1641749160440,0.00795793,3170.3,3169.8,0.3]
[1641749160641,0.00795793,3170.3,3169.9,0.78858]
[1641749160840,0.00738951,3170.2,3169.9,0.78858]
[1641749161090,0.00738951,3170.2,3169.7,1.87716]
[1641749161292,13.68860318,3169.5,3169.4,0.07885]
[1641749161498,13.68860318,3169.5,3167.8,3.15484]
[1641749161499,13.68860318,3169.5,3168.0,0.78906]
[1641749161690,15.9926,3169.4,3168.1,2.36121832]
[1641749161890,15.99544212,3169.4,3168.2,0.02888]
[1641749162092,0.00227369,3169.3,3168.2,0.00397896]
[1641749162288,0.00227369,3169.3,3168.3,1.47950278]
[1641749162489,0.00170527,3169.2,3168.3,1.47609224]
[1641749162689,0.00170527,3169.2,3168.4,0.00284212]
[1641749162893,0.00113685,3169.1,3168.4,0.00284212]
[1641749163090,12.22363685,3169.4,3168.4,0.00284212]
[1641749163291,12.22363685,3169.4,3168.5,0.07888]
[1641749163490,0.00113684,3169.3,3168.5,0.07888]
[1641749163690,0.00113684,3169.3,3168.6,0.00284212]
[1641749163891,0.00113684,3169.3,3168.6,0.79174212]
[1641749164092,0.00113684,3169.3,3168.7,2.28692102]
[1641749164294,0.00113684,3169.3,3168.7,0.68254792]
[1641749164593,0.00113684,3169.3,3168.8,0.00170527]
[1641749164868,0.00113684,3169.3,3169.2,1.34386267]
[1641749165063,0.00113684,3169.3,3169.2,0.6]
[1641749165465,0.00113684,3169.3,3169.1,1.08869]
[1641749165664,0.00113684,3169.3,3169.2,0.07888]
[1641749165862,0.00113684,3169.3,3169.1,2.46757]
[1641749166262,0.00113684,3169.3,3169.1,3.69048077]
[1641749168163,0.00113684,3169.3,3169.2,2.23264278]
[1641749168362,0.00113684,3169.3,3169.1,3.69048077]
[1641749168594,0.00113684,3169.3,3169.1,5.92430348]
[1641749169094,0.00113684,3169.3,3169.1,3.69048077]
[1641749169496,0.00113684,3169.3,3169.1,5.9283893]
[1641749169697,0.00113684,3169.3,3169.1,5.8495093]
[1641749171110,0.00113684,3169.3,3169.1,5.92978352]
[1641749171303,0.00113684,3169.3,3169.2,2.23549111]
[1641749171501,3.78974002,3169.5,3169.3,0.6]
[1641749171702,3.78974002,3169.5,3169.3,2.1773]
[1641749172000,3.78974002,3169.5,3169.3,3.1773]
[1641749172285,3.78974002,3169.5,3169.3,4.44454627]
[1641749172684,3.78974002,3169.5,3169.3,3.1773]
[1641749172884,3.78974002,3169.5,3169.3,1.5773]
[1641749173685,3.78974002,3169.5,3169.3,2.1773]
[1641749174287,3.78974002,3169.5,3169.3,3.1773]
[1641749174485,3.78974002,3169.5,3169.3,2.34738405]
[1641749175691,3.78974002,3169.5,3169.3,3.34738405]
[1641749175891,3.78974002,3169.5,3169.3,2.94738405]
[1641749176092,3.78974002,3169.5,3169.4,1.0]
[1641749176291,3.78974002,3169.5,3169.4,3.34738405]
[1641749176492,3.79087687,3169.5,3169.4,3.34738405]
[1641749177297,3.79087687,3169.5,3169.4,5.60465911]
[1641749177495,3.79087687,3169.5,3169.4,3.34738405]
[1641749178094,3.79087687,3169.5,3169.4,5.63263034]
[1641749178695,3.79087687,3169.5,3169.4,6.08763034]
[1641749178896,11.95279003,3170.1,3169.8,0.7885]
[1641749179095,11.95279003,3170.1,3169.9,3.25441829]
[1641749179096,0.00389003,3170.1,3169.9,3.25441829]
[1641749179294,0.00389003,3170.1,3170.0,13.75]
[1641749179495,0.00389003,3170.1,3170.0,17.6804857]
[1641749179762,0.00730057,3170.1,3170.0,6.71989334]
[1641749180263,1.18868351,3171.2,3170.1,11.05]
[1641749180469,1.18868351,3171.2,3170.6,0.78839]
[1641749180665,0.00568424,3171.1,3170.5,2.10182791]
[1641749181174,2.10182791,3170.5,3169.5,1.08260319]
[1641749181368,0.01209709,3169.8,3169.5,1.00377319]
[1641749181567,1.42030701,3170.1,3169.6,0.00284212]
[1641749181766,6.52420527,3170.4,3169.6,2.10467003]
[1641749181966,9.21056703,3170.4,3169.6,2.10467003]
[1641749182166,9.21056703,3170.4,3169.7,0.00227369]
[1641749182167,0.00113685,3170.3,3169.7,0.00227369]
[1641749182366,0.00113685,3170.3,3169.7,2.1041016]
[1641749182566,0.00113685,3170.3,3169.7,0.81110805]
[1641749182765,1.30584051,3170.1,3169.8,0.00170527]
[1641749182965,1.30584051,3170.1,3169.8,0.80883436]
[1641749183166,0.00113685,3170.0,3169.7,1.80883436]
[1641749183626,0.00284212,3170.3,3169.7,1.10883436]
[1641749184021,0.0022737,3170.2,3169.7,1.10883436]
[1641749184225,0.0022737,3170.2,3169.7,0.80883436]
[1641749184421,0.00170527,3170.1,3169.7,0.56501267]
[1641749184824,0.00113685,3170.0,3169.7,0.56501267]
[1641749185228,3.78864807,3170.3,3169.7,0.56501267]
[1641749185229,0.01249119,3169.9,3169.7,0.56501267]
[1641749186023,0.80149119,3169.9,3169.6,0.56501267]
[1641749186229,16.43675714,3169.8,3169.6,0.56501267]
[1641749186524,13.75,3169.7,3168.4,2.50492997]
[1641749186723,15.76923799,3169.7,3168.4,2.50492997]
[1641749186924,15.76923799,3169.7,3168.5,0.0073895]
[1641749187344,12.1,3169.6,3168.4,2.74931947]
[1641749187543,12.1,3169.6,3168.5,1.0]
[1641749187544,0.88719064,3169.6,3168.5,1.0]
[1641749187748,0.00568423,3169.5,3168.8,1.38394256]
[1641749187945,0.88662222,3169.5,3168.8,1.38394256]
[1641749188144,0.00511581,3169.4,3168.9,1.05766588]
[1641749188345,0.8860538,3169.4,3168.9,1.35766588]
[1641749188544,0.00454738,3169.3,3168.9,1.35766588]
[1641749188749,1.27553042,3169.3,3169.0,1.08882]
[1641749188946,0.00397896,3169.2,3169.0,1.08882]
[1641749189145,1.274962,3169.2,3169.0,1.08882]
[1641749189345,0.00341054,3169.1,3169.0,1.08882]
[1641749189545,1.27439358,3169.1,3169.0,1.08882]
[1641749192704,1.27439358,3169.1,3169.0,3.32275968]
[1641749192905,1.27439358,3169.1,3169.0,4.32275968]
[1641749193304,1.27439358,3169.1,3169.0,2.08882]
[1641749194943,1.27439358,3169.1,3169.0,2.1677]
[1641749195345,1.27439358,3169.1,3169.0,4.40429086]
[1641749196745,1.27439358,3169.1,3169.0,4.93956508]
[1641749197143,1.27439358,3169.1,3169.0,8.53956508]
[1641749197544,1.27439358,3169.1,3169.0,4.93956508]
[1641749197745,0.0946366,3169.9,3169.3,0.78858]
[1641749197946,1.02257775,3169.9,3169.6,0.78859]
[1641749198147,0.00341054,3169.7,3169.6,0.78859]
[1641749198346,0.00341054,3169.7,3169.6,1.38859]
[1641749198593,0.59228134,3169.7,3169.6,2.38859]
[1641749203445,0.59228134,3169.7,3169.6,1.78859]
[1641749203746,0.59228134,3169.7,3169.1,0.07886]
[1641749203943,0.59228134,3169.7,3168.9,3.15494]
[1641749204144,0.00284211,3169.6,3168.9,3.15494]
[1641749204348,0.5753563,3169.6,3168.9,3.15494]
[1641749204545,0.00227369,3169.5,3168.9,3.15494]
[1641749204744,0.56614816,3169.5,3169.1,0.78882]
[1641749204944,0.00170527,3169.4,3169.1,0.78882]
[1641749205146,0.56557974,3169.4,3169.1,1.08882]
[1641749205347,0.00113684,3169.3,3169.1,0.78882]
[1641749205549,0.56501131,3169.3,3169.1,0.78882]
[1641749206800,0.56501131,3169.3,3168.6,0.53388]
[1641749206801,0.56501131,3169.3,3168.7,0.7889]
[1641749207005,0.56501131,3169.3,3168.5,0.78896]
[1641749207200,0.56501131,3169.3,3168.8,0.00170527]
[1641749207600,0.65964791,3169.3,3168.8,0.00170527]
[1641749210048,0.65964791,3169.3,3168.8,1.09056527]
[1641749210449,0.65964791,3169.3,3168.9,0.00113685]
[1641749210949,0.65964791,3169.3,3168.9,0.78999685]
[1641749211548,0.65964791,3169.3,3168.9,0.00113685]
[1641749211848,0.65964791,3169.3,3168.7,0.0022737]
[1641749212448,0.65964791,3169.3,3168.7,0.7889]
[1641749212648,0.65964791,3169.3,3168.6,1.57771]
[1641749213050,0.65964791,3169.3,3168.7,1.5799837]
[1641749213905,0.65964791,3169.3,3168.9,0.78886]
[1641749214304,0.44323797,3169.3,3168.9,0.78886]
[1641749214708,0.44323797,3169.3,3169.1,1.09473047]
[1641749214909,0.44323797,3169.3,3169.2,0.7888]
[1641749215107,0.44323797,3169.3,3169.2,1.0888]
[1641749215306,0.44323797,3169.3,3169.2,0.7888]
[1641749215507,0.44323797,3169.3,3169.2,1.3888]
[1641749215805,0.44323797,3169.3,3169.2,0.7888]
[1641749216005,0.44323797,3169.3,3169.2,1.0888]
[1641749216208,0.44323797,3169.3,3169.2,0.7888]
[1641749216606,0.44323797,3169.3,3169.2,1.3888]
[1641749217007,0.44323797,3169.3,3169.2,2.3888]
[1641749217245,0.44323797,3169.3,3169.2,1.3888]
[1641749217847,0.44323797,3169.3,3169.2,2.3888]
[1641749218249,0.44323797,3169.3,3169.2,1.3888]
[1641749218447,0.09577344,3169.3,3169.2,0.7888]
[1641749218848,0.09577344,3169.3,3168.9,1.57759]
[1641749219448,0.09577344,3169.3,3169.1,0.78885]
[1641749219849,0.09577344,3169.3,3168.9,1.57759]
[1641749220251,0.09577344,3169.3,3169.0,0.6]
[1641749220651,0.09577344,3169.3,3169.1,0.78883]
[1641749222333,0.09577344,3169.3,3169.1,2.66636]
[1641749222537,0.09577344,3169.3,3169.2,1.0]
[1641749222738,0.09577344,3169.3,3169.2,2.57742]
[1641749222936,0.09577344,3169.3,3169.2,2.87742]
[1641749223134,3.29577344,3169.3,3169.2,2.87742]
[1641749224538,6.8724,3169.7,3169.2,12.63242]
[1641749224743,6.8724,3169.7,3169.4,0.78856]
[1641749225044,0.00170527,3169.6,3169.4,2.38856]
[1641749225443,0.00113685,3169.5,3169.4,2.38856]
[1641749226044,0.00113685,3169.5,3169.4,3.69728973]
[1641749226445,0.00113685,3169.5,3169.4,4.48584073]
[1641749227749,0.00113685,3169.5,3169.4,4.56470073]
[1641749229494,0.00113685,3169.5,3169.4,4.51470073]
[1641749230399,3.20113685,3169.5,3169.4,4.51470073]
[1641749230898,0.00113685,3169.5,3169.4,4.43584073]
[1641749232551,0.00113685,3169.5,3169.4,2.88584073]
[1641749233753,0.00113685,3169.5,3169.4,2.08856]
[1641749233954,0.00113685,3169.5,3169.4,2.38856]
[1641749235655,0.00113685,3169.5,3169.4,1.08856]
[1641749235854,0.00113685,3169.5,3169.4,1.38856]
[1641749236099,0.00113685,3169.5,3169.4,2.38856]
[1641749239604,0.00113685,3169.5,3169.4,2.33856]
[1641749241151,0.00113685,3169.5,3169.4,1.38856]
[1641749241350,13.75,3169.4,3168.7,0.0022737]
[1641749241749,13.75,3169.4,3168.6,0.00397896]
[1641749241949,0.00113685,3169.5,3168.6,0.00397896]
[1641749242348,0.00113685,3169.5,3168.8,1.57782]
[1641749242749,0.00113685,3169.5,3168.9,0.00227369]
[1641749243601,2.68772042,3169.5,3168.9,0.79114369]
[1641749244001,2.68772042,3169.5,3169.0,0.79056527]
[1641749244202,0.00113685,3169.5,3169.0,0.79056527]
[1641749244404,0.00113685,3169.5,3169.1,0.00113684]
[1641749245003,2.68772042,3169.5,3169.1,0.00113684]
[1641749245402,0.00113685,3169.5,3169.1,0.00113684]
[1641749246008,0.00113685,3169.5,3169.1,0.73997684]
[1641749246404,0.00170527,3169.4,3169.1,0.73997684]
[1641749246702,0.00113684,3169.3,3169.1,0.73997684]
[1641749247104,6.8724,3169.7,3169.1,0.73997684]
[1641749247105,0.00227369,3169.5,3169.1,0.73997684]
[1641749247647,0.00170527,3169.4,3169.2,0.7888]
[1641749247855,0.00170527,3169.4,3169.3,0.7888]
[1641749248052,6.8724,3169.7,3169.3,0.7888]
[1641749248447,0.00284211,3169.6,3169.3,0.7888]
[1641749248850,0.00227369,3169.5,3169.3,1.57759]
[1641749249247,0.00170527,3169.4,3169.3,0.7888]
[1641749250556,0.00170527,3169.4,3169.3,1.0888]
[1641749250752,0.00170527,3169.4,3169.3,1.3888]
[1641749251712,6.45170527,3169.4,3169.3,0.4888]
[1641749251912,0.00170527,3169.4,3169.3,0.4888]
[1641749252312,0.00170527,3169.4,3169.1,1.5775]
[1641749252513,0.00170527,3169.4,3168.9,0.7889]
[1641749252714,0.00113684,3169.3,3168.9,0.7889]
[1641749253112,0.00170527,3169.4,3168.9,0.7889]
[1641749253513,0.00113684,3169.3,3168.9,1.5778]
[1641749253917,0.00227369,3169.5,3168.9,1.5778]
[1641749254113,13.75,3169.4,3168.5,3.6107539]
[1641749254315,2.34663216,3169.3,3167.9,2.36671]
[1641749254513,2.34663216,3169.3,3168.6,0.00284212]
[1641749254514,0.7891572,3168.8,3168.6,0.00284212]
[1641749254757,20.35898,3168.7,3168.6,0.00284212]
[1641749254955,20.35898,3168.7,3167.8,0.00738951]
[1641749255155,20.35898,3168.7,3168.0,1.43593842]
[1641749255156,20.95898,3168.7,3168.0,1.43593842]
[1641749255355,20.95898,3168.7,3167.7,0.79712793]
[1641749255356,1.0,3168.6,3167.8,0.00738951]
[1641749255556,1.0,3168.6,3168.1,0.00568424]
[1641749255757,1.0,3168.6,3167.9,0.78484454]
[1641749255958,0.3,3168.6,3167.9,0.78484454]
[1641749256155,1.0,3168.6,3168.0,0.00625266]
[1641749256354,1.07889,3168.6,3168.0,0.00625266]
[1641749256562,0.7891916,3168.5,3168.0,0.00625266]
[1641749256758,6.5301,3168.7,3168.0,0.00625266]
[1641749257459,8.4084951,3168.7,3167.8,1.47360847]
[1641749257660,0.7892089,3168.3,3167.8,1.47360847]
[1641749257858,0.7892089,3168.3,3167.8,1.43042955]
[1641749258060,0.7892089,3168.3,3167.3,1.57835]
[1641749258259,0.00170527,3168.2,3167.3,1.57835]
[1641749258498,0.00170527,3168.2,3167.4,0.00284212]
[1641749258700,0.00113684,3168.1,3167.4,0.00284212]
[1641749258900,0.00113684,3168.1,3167.4,1.35336457]
[1641749259103,2.62423956,3168.2,3167.4,0.00284212]
[1641749259300,0.7893032,3167.9,3167.5,0.0022737]
[1641749259499,0.7893032,3167.9,3167.3,0.00341054]
[1641749259700,0.7893032,3167.9,3167.2,0.00397897]
[1641749260100,0.78134883,3167.9,3167.2,0.00397897]
[1641749260299,0.78134883,3167.9,3167.3,1.12634189]
[1641749260899,0.7893476,3167.8,3167.3,1.12634189]
[1641749261499,3.6893476,3167.8,3167.2,0.00397897]
[1641749261702,6.7611,3167.7,3167.2,0.00397897]
[1641749261900,6.7611,3167.7,3166.9,0.00568424]
[1641749262750,9.32732528,3167.7,3166.9,0.00568424]
[1641749262953,0.7894402,3167.4,3166.9,0.00568424]
[1641749263150,6.99315053,3167.3,3166.9,0.00568424]
[1641749263349,6.99315053,3167.3,3166.3,0.00909478]
[1641749263350,4.2992,3167.3,3166.3,0.00909478]
[1641749263851,4.2992,3167.3,3166.5,1.44764753]
[1641749264051,5.8782734,3167.3,3166.5,1.44764753]
[1641749264255,5.8782734,3167.3,3166.6,0.00738951]
[1641749264256,4.2992,3167.3,3166.6,0.00738951]
[1641749265751,0.7895281,3167.1,3166.6,0.00738951]
[1641749266604,0.7895281,3167.1,3166.3,0.00909478]
[1641749267205,1.34053876,3167.0,3166.3,0.00909478]
[1641749267505,0.7895862,3166.9,3166.2,0.0096632]
[1641749267905,0.3,3166.9,3166.2,0.0096632]
[1641749268104,6.9379,3166.8,3166.2,0.0096632]
[1641749268306,6.9379,3166.8,3165.8,0.0119369]
[1641749268505,6.9379,3166.8,3166.2,1.24096103]
[1641749268904,6.9379,3166.8,3166.3,0.00909478]
[1641749269305,6.9379,3166.8,3166.6,1.53856385]
[1641749269507,6.9379,3166.8,3165.7,8.44405]
[1641749269508,6.9379,3166.8,3166.1,0.01023163]
[1641749269763,6.9379,3166.8,3166.7,0.00682109]
[1641749269950,6.9379,3166.8,3165.7,8.14405]
[1641749269951,6.9379,3166.8,3165.9,1.2264384]
[1641749270351,6.9379,3166.8,3166.0,0.01080005]
[1641749270651,6.9379,3166.8,3166.1,1.18977781]
[1641749270951,6.9379,3166.8,3166.2,0.0096632]
[1641749274808,6.9379,3166.8,3166.1,0.78954]
[1641749275004,6.9379,3166.8,3166.2,0.0096632]
[1641749275805,6.9379,3166.8,3166.0,1.14092039]
[1641749276205,6.9379,3166.8,3166.1,0.01023163]
[1641749276707,7.5379,3166.8,3166.0,0.01080005]
[1641749276907,0.07895,3166.7,3166.0,0.01080005]
[1641749277105,0.07895,3166.7,3165.8,0.0119369]
[1641749277106,1.07895,3166.7,3165.8,0.0119369]
[1641749277756,0.3,3166.4,3165.8,0.0119369]
[1641749277956,0.7897917,3166.3,3165.8,0.0119369]
[1641749278158,0.3,3166.2,3165.8,0.0119369]
[1641749278458,0.07896,3166.3,3165.8,0.0119369]
[1641749278657,4.0823,3166.5,3166.2,1.3491548]
[1641749279058,4.0823,3166.5,3166.3,0.00909478]
[1641749280163,4.0823,3166.5,3166.4,1.42253023]
[1641749280558,6.9379,3166.8,3166.4,1.43105659]
[1641749280759,6.9379,3166.8,3166.4,0.00852636]
[1641749281006,6.9379,3166.8,3166.5,0.00795793]
[1641749281207,2.9,3166.5,3166.3,0.00909478]
[1641749281809,2.9,3166.5,3166.3,1.91891964]
[1641749282208,2.9,3166.5,3166.4,0.00852636]
[1641749283212,2.9,3166.5,3166.4,8.35852636]
[1641749283607,2.9,3166.5,3166.4,2.33137433]
[1641749284014,2.9,3166.5,3166.4,3.33137433]
[1641749284412,2.9,3166.5,3166.4,3.78637433]
[1641749285656,2.9,3166.5,3166.4,1.46352636]
[1641749285857,2.9,3166.5,3166.4,0.46352636]
[1641749287057,2.9,3166.5,3166.4,0.00852636]
[1641749290814,2.9,3166.5,3166.3,0.00909478]
[1641749291412,2.9,3166.5,3166.3,1.58793478]
[1641749291612,2.9,3166.5,3166.4,3.45588072]
[1641749291814,2.9,3166.5,3166.4,4.76440708]
[1641749292113,3.98864674,3167.6,3166.5,13.75]
[1641749292369,0.00384674,3167.6,3167.0,0.78921]
[1641749292565,0.00384674,3167.6,3167.0,1.38921]
[1641749292867,0.00384674,3167.6,3167.2,0.78914]
[1641749293262,0.00384674,3167.6,3167.3,0.00341054]
[1641749293463,0.00384674,3167.6,3167.4,1.53917591]
[1641749293864,0.00384674,3167.6,3167.5,0.0022737]
[1641749294263,11.0417,3167.8,3167.5,0.0022737]
[1641749294463,11.02742799,3167.8,3167.5,0.0022737]
[1641749295764,11.02742799,3167.8,3167.5,0.7914837]
[1641749296214,11.02742799,3167.8,3167.6,0.00170527]
[1641749296609,6.35,3167.7,3167.5,0.74091527]
[1641749296811,11.02742799,3167.8,3167.5,0.74091527]
[1641749297410,11.02742799,3167.8,3167.4,1.53917591]
[1641749298015,11.02742799,3167.8,3166.5,0.455]
[1641749298212,1.0,3167.7,3166.5,0.455]
[1641749298413,0.7895022,3167.2,3166.6,0.00568424]
[1641749298611,1.0895022,3167.2,3166.6,0.00568424]
[1641749298812,0.6,3167.2,3166.2,0.00795793]
[1641749299011,0.3,3167.2,3166.2,0.00795793]
[1641749299213,1.56027966,3167.1,3166.1,1.25951337]
[1641749299612,1.56027966,3167.1,3166.2,0.00795793]
[1641749299857,0.7895965,3167.0,3166.2,0.00795793]
[1641749300057,1.7895965,3167.0,3166.2,0.00795793]
[1641749300661,6.5088,3166.9,3166.2,0.00795793]
[1641749300857,6.5088,3166.9,3166.3,0.78948]
[1641749300858,9.19700534,3166.9,3166.3,0.78948]
[1641749301257,9.19700534,3166.9,3166.4,0.00682109]
[1641749301457,6.5088,3166.9,3166.4,0.00682109]
[1641749301857,6.5088,3166.9,3166.1,1.25951337]
[1641749301858,6.5088,3166.9,3166.6,1.11181304]
[1641749302259,6.5088,3166.9,3166.7,0.00511582]
[1641749306411,6.5088,3166.9,3166.8,0.78939]
[1641749306810,6.5088,3166.9,3166.8,0.79393739]
[1641749307263,6.5088,3166.9,3166.8,2.08205102]
[1641749308059,6.5088,3166.9,3166.8,0.79393739]
[1641749308262,6.5088,3166.9,3166.8,0.00454739]
[1641749308660,6.5088,3166.9,3166.7,0.00511582]
[1641749309460,6.5088,3166.9,3166.5,0.78948]
[1641749309661,6.5088,3166.9,3166.6,1.43353732]
[1641749309961,6.5088,3166.9,3166.7,0.00511582]
[1641749312726,6.5088,3166.9,3166.4,0.00682109]
[1641749313327,6.5088,3166.9,3166.5,0.78948]
[1641749313531,6.5088,3166.9,3166.4,0.00682109]
[1641749313928,6.5088,3166.9,3166.5,0.7893615]
[1641749314335,6.5088,3166.9,3166.3,0.00738951]
[1641749314631,4.03247126,3167.6,3166.7,0.78938]
[1641749314871,11.70425477,3167.7,3166.7,1.08938]
[1641749315068,11.70425477,3167.7,3166.8,0.00454739]
[1641749315270,11.70425477,3167.7,3166.9,0.7892465]
[1641749315670,2.68805364,3167.6,3167.0,0.30341055]
[1641749315869,2.68805364,3167.6,3167.2,0.78926]
[1641749316072,2.68805364,3167.6,3167.1,0.00284212]
[1641749316268,2.68805364,3167.6,3167.3,0.00170527]
[1641749316469,2.68805364,3167.6,3167.1,0.00284212]
[1641749317169,2.68805364,3167.6,3166.7,0.78943]
[1641749317369,2.68805364,3167.6,3166.8,0.00454739]
[1641749318725,0.7894475,3167.4,3166.8,0.00454739]
[1641749319320,2.68805364,3167.6,3166.8,0.00454739]
[1641749319520,2.68805364,3167.6,3166.9,0.78939]
[1641749319922,2.68805364,3167.3,3167.0,0.00341055]
[1641749320721,2.68805364,3167.3,3166.9,0.00397897]
[1641749320923,2.68805364,3167.6,3167.0,0.78933]
[1641749321328,2.68805364,3167.6,3167.1,0.00284212]
[1641749321523,7.6177,3167.7,3167.1,0.00284212]
[1641749321723,7.6177,3167.7,3167.1,0.79217212]
[1641749321924,6.4831,3167.7,3167.1,0.79217212]
[1641749322124,6.4831,3167.7,3167.2,0.0022737]
[1641749322368,2.68819326,3167.6,3167.2,0.0022737]
[1641749322762,2.68819326,3167.6,3167.2,0.7915737]
[1641749323162,2.68819326,3167.6,3167.3,0.00170527]
[1641749323562,2.68819326,3167.6,3167.3,1.49249661]
[1641749323762,2.68819326,3167.6,3167.2,0.7893]
[1641749323968,2.68819326,3167.6,3167.4,0.00113685]